Workbook

Sheet Лист1
A1: Day | B1: км/время | C1: ГЕЛЬ | D1: БАТОНЧИК | E1: КАРНЕТИН | F1: BCAA | G1: СОЛЬ | H1: ГУАРАНА | I1: ГЕЙНЕР | J1: РЕКАВЕРИ | K1: СУХОФРУКТ | L1: БАНАН | M1: БУЛЬОН | N1: БУТЕР
A2: 1 | B2: Плавание 10 км (4:30:00 - 2520 kcal) | R2: Плавание 10 км
B3: PreStart за 20 мин | D3: 1 | G3: 2 | R3: PRE | S3: =Foot($C$1:$N$1,C3:N3) -> 1БАТОНЧИК+2СОЛЬ
B4: 2500 метров | C4: 1 | R4: 2500 | S4: =Foot($C$1:$N$1,C4:N4) -> 1ГЕЛЬ
B5: 5000 метров | G5: 2 | I5: 1 | R5: 5000 | S5: 2СОЛЬ+1ГЕЙНЕР
B6: 7500 метров | C6: 1 | F6: 2 | R6: 7500 | S6: 1ГЕЛЬ+2BCAA
B7: 10000 метров | R7: 10000 | S7: =Foot($C$1:$N$1,C7:N7) -> 
B8: Transition | G8: 1 | M8: 1 | N8: 1 | R8: TRS | S8: 1СОЛЬ+1БУЛЬОН+1БУТЕР
B9: Велосипед 145 км (5:15:00 - 4500 kcal) | R9: Велосипед 145 км
B10: 00:10:00 | C10: 1 | E10: 1 | R10: 00:10:00 | S10: =Foot($C$1:$N$1,C10:N10) -> 1ГЕЛЬ+1КАРНЕТИН
B11: 00:30:00 | G11: 2 | K11: 2 | R11: 00:30:00 | S11: =Foot($C$1:$N$1,C11:N11) -> 2СОЛЬ+2СУХОФРУКТ
B12: 00:50:00 | C12: 1 | R12: 00:50:00 | S12: 1ГЕЛЬ
B13: 01:10:00 | F13: 2 | I13: 1 | R13: 01:10:00 | S13: 2BCAA+1ГЕЙНЕР
B14: 01:30:00 | C14: 1 | G14: 2 | R14: 01:30:00 | S14: 1ГЕЛЬ+2СОЛЬ
B15: 01:50:00 | L15: 1 | R15: 01:50:00 | S15: 1БАНАН
B16: 02:10:00 | C16: 1 | R16: 02:10:00 | S16: 1ГЕЛЬ
B17: 02:30:00 | G17: 2 | K17: 2 | R17: 02:30:00 | S17: 2СОЛЬ+2СУХОФРУКТ
B18: 02:50:00 | M18: 1 | N18: 1 | R18: 02:50:00 | S18: 1БУЛЬОН+1БУТЕР
B19: 03:10:00 | C19: 1 | F19: 2 | R19: 03:10:00 | S19: 1ГЕЛЬ+2BCAA
B20: 03:30:00 | G20: 2 | L20: 1 | R20: 03:30:00 | S20: 2СОЛЬ+1БАНАН
B21: 03:50:00 | C21: 1 | E21: 1 | R21: 03:50:00 | S21: 1ГЕЛЬ+1КАРНЕТИН
B22: 04:10:00 | I22: 1 | R22: 04:10:00 | S22: 1ГЕЙНЕР
B23: 04:30:00 | C23: 1 | G23: 2 | K23: 2 | R23: 04:30:00 | S23: 1ГЕЛЬ+2СОЛЬ+2СУХОФРУКТ
B24: 04:50:00 | H24: 1 | R24: 04:50:00 | S24: 1ГУАРАНА
B25: 05:10:00 | C25: 1 | R25: 05:10:00 | S25: 1ГЕЛЬ
B26: рез 5:30:00 | G26: 2 | L26: 1 | R26: 05:30:00 | S26: 2СОЛЬ+1БАНАН
B27: рез 5:50:00 | C27: 1 | R27: 05:50:00 | S27: 1ГЕЛЬ
B28: рез 6:10:00 | R28: 06:10:00
B29: AfterFinish до 20 мин | J29: 1 | R29: AFTR | S29: 1РЕКАВЕРИ
B30: kcal | C30: =SUM(C3:C29) -> 11 | D30: =SUM(D3:D29) -> 1 | E30: 2 | F30: 6 | G30: 17 | H30: 1 | I30: 3 | J30: 1 | K30: 6 | L30: 3 | M30: 2 | N30: 2 | O30: 7000
C31: =C30*C32 -> 957 | D31: =D30*D32 -> 200 | E31: 0 | F31: 0 | G31: 0 | H31: 0 | I31: 0 | J31: 0 | K31: 420 | L31: 345 | M31: =M30*M32 -> 240 | N31: 530 | O31: =SUM(C31:N31) -> 2692
B32: kcal за порцию | C32: 87 | D32: 200 | K32: 70 | L32: 115 | M32: 120 | N32: 265
A34: 2 | B34: Велосипед 276 км (10:00:00 - 9000 kcal) | R34: Велосипед 276 км
B35: PreStart за 20 мин | D35: 1 | G35: 2 | R35: PRE | S35: =Foot($C$1:$N$1,C35:N35) -> 1БАТОНЧИК+2СОЛЬ
B36: 00:30:00 | R36: 00:30:00 | S36: =Foot($C$1:$N$1,C36:N36) -> 
B37: 00:50:00 | C37: 1 | R37: 00:50:00 | S37: 1ГЕЛЬ
B38: 01:10:00 | G38: 2 | L38: 1 | R38: 01:10:00 | S38: 2СОЛЬ+1БАНАН
B39: 01:30:00 | F39: 2 | R39: 01:30:00 | S39: 2BCAA
B40: 01:50:00 | C40: 1 | I40: 1 | R40: 01:50:00 | S40: 1ГЕЛЬ+1ГЕЙНЕР
B41: 02:10:00 | G41: 2 | K41: 2 | R41: 02:10:00 | S41: 2СОЛЬ+2СУХОФРУКТ
B42: 02:30:00 | M42: 1 | N42: 1 | R42: 02:30:00 | S42: 1БУЛЬОН+1БУТЕР
B43: 02:50:00 | C43: 1 | E43: 1 | R43: 02:50:00 | S43: 1ГЕЛЬ+1КАРНЕТИН
B44: 03:10:00 | G44: 2 | L44: 1 | R44: 03:10:00 | S44: 2СОЛЬ+1БАНАН
B45: 03:30:00 | F45: 2 | R45: 03:30:00 | S45: 2BCAA
B46: 03:50:00 | I46: 1 | R46: 03:50:00 | S46: 1ГЕЙНЕР
B47: 04:10:00 | G47: 2 | K47: 2 | R47: 04:10:00 | S47: 2СОЛЬ+2СУХОФРУКТ
B48: 04:30:00 | R48: 04:30:00
B49: 04:50:00 | C49: 1 | R49: 04:50:00 | S49: 1ГЕЛЬ
B50: 05:10:00 | G50: 2 | K50: 2 | R50: 05:10:00 | S50: 2СОЛЬ+2СУХОФРУКТ
B51: 05:30:00 | M51: 1 | N51: 1 | R51: 05:30:00 | S51: 1БУЛЬОН+1БУТЕР
B52: 05:50:00 | C52: 1 | E52: 1 | R52: 05:50:00 | S52: 1ГЕЛЬ+1КАРНЕТИН
B53: 06:10:00 | G53: 2 | L53: 1 | R53: 06:10:00 | S53: 2СОЛЬ+1БАНАН
B54: 06:30:00 | F54: 2 | R54: 06:30:00 | S54: 2BCAA
B55: 06:50:00 | I55: 1 | R55: 06:50:00 | S55: 1ГЕЙНЕР
B56: 07:10:00 | G56: 2 | H56: 1 | K56: 2 | R56: 07:10:00 | S56: 2СОЛЬ+1ГУАРАНА+2СУХОФРУКТ
B57: 07:30:00 | R57: 07:30:00
B58: 07:50:00 | C58: 1 | F58: 2 | R58: 07:50:00 | S58: 1ГЕЛЬ+2BCAA
B59: 08:10:00 | G59: 2 | L59: 1 | R59: 08:10:00 | S59: 2СОЛЬ+1БАНАН
B60: 08:30:00 | M60: 1 | N60: 1 | R60: 08:30:00 | S60: 1БУЛЬОН+1БУТЕР
B61: 08:50:00 | H61: 1 | R61: 08:50:00 | S61: 1ГУАРАНА
B62: 09:10:00 | C62: 1 | G62: 2 | K62: 2 | R62: 09:10:00 | S62: 1ГЕЛЬ+2СОЛЬ+2СУХОФРУКТ
B63: 09:30:00 | I63: 1 | R63: 09:30:00 | S63: 1ГЕЙНЕР
B64: 09:50:00 | F64: 2 | R64: 09:50:00 | S64: 2BCAA
B65: 10:10:00 | G65: 2 | L65: 1 | R65: 10:10:00 | S65: 2СОЛЬ+1БАНАН
B66: рез 10:30:00 | K66: 2 | R66: 10:30:00 | S66: 2СУХОФРУКТ
B67: рез 10:50:00 | C67: 1 | R67: 10:50:00 | S67: 1ГЕЛЬ
B68: рез 11:10:00 | R68: 11:10:00
B69: AfterFinish до 20 мин | J69: 1 | R69: AFTR | S69: 1РЕКАВЕРИ
B70: kcal | C70: =SUM(C35:C69) -> 8 | D70: =SUM(D35:D69) -> 1 | E70: 2 | F70: 10 | G70: 22 | H70: 2 | I70: 4 | J70: 1 | K70: 12 | L70: 5 | M70: 3 | N70: 3 | O70: 9000
C71: =C70*C72 -> 696 | D71: =D70*D72 -> 200 | E71: =E70*E72 -> 0 | F71: =F70*F72 -> 0 | G71: =G70*G72 -> 0 | H71: =H70*H72 -> 0 | I71: =I70*I72 -> 0 | J71: =J70*J72 -> 0 | K71: =K70*K72 -> 840 | L71: =L70*L72 -> 575 | M71: =M70*M72 -> 360 | N71: =N70*N72 -> 795 | O71: =SUM(C71:N71) -> 3466
B72: kcal за порцию | C72: 87 | D72: 200 | K72: 70 | L72: 115 | M72: 120 | N72: 265
A74: 3 | B74: Бег 84 км (10:00:00 - 7600 kcal) | R74: Бег 84 км
B75: PreStart за 20 мин | D75: 1 | G75: 2 | R75: PRE | S75: =Foot($C$1:$N$1,C75:N75) -> 1БАТОНЧИК+2СОЛЬ
B76: 5 | R76: 5 | S76: =Foot($C$1:$N$1,C76:N76) -> 
B77: 10 | C77: 1 | G77: 2 | R77: 10 | S77: 1ГЕЛЬ+2СОЛЬ
B78: 15 | F78: 2 | K78: 1 | R78: 15 | S78: 2BCAA+1СУХОФРУКТ
B79: 20 | C79: 1 | G79: 2 | I79: 1 | R79: 20 | S79: 1ГЕЛЬ+2СОЛЬ+1ГЕЙНЕР
B80: 25 | L80: 1 | R80: 25 | S80: 1БАНАН
B81: T1 30 | G81: 2 | M81: 1 | N81: 1 | R81: 30 | S81: 2СОЛЬ+1БУЛЬОН+1БУТЕР
B82: 35 | C82: 1 | F82: 2 | R82: 35 | S82: 1ГЕЛЬ+2BCAA
B83: 40 | G83: 2 | I83: 1 | K83: 1 | R83: 40 | S83: 2СОЛЬ+1ГЕЙНЕР+1СУХОФРУКТ
B84: 45 | C84: 1 | H84: 1 | R84: 45 | S84: 1ГЕЛЬ+1ГУАРАНА
B85: 50 | G85: 2 | L85: 1 | R85: 50 | S85: 2СОЛЬ+1БАНАН
B86: T2 55 | F86: 2 | M86: 1 | N86: 1 | R86: 55 | S86: 2BCAA+1БУЛЬОН+1БУТЕР
B87: 60 | C87: 1 | G87: 2 | R87: 60 | S87: 1ГЕЛЬ+2СОЛЬ
B88: 65 | H88: 1 | I88: 1 | R88: 65 | S88: 1ГУАРАНА+1ГЕЙНЕР
B89: 70 | C89: 1 | G89: 2 | K89: 1 | R89: 70 | S89: 1ГЕЛЬ+2СОЛЬ+1СУХОФРУКТ
B90: T3 75 | F90: 2 | M90: 1 | N90: 1 | R90: 75 | S90: 2BCAA+1БУЛЬОН+1БУТЕР
B91: 80 | C91: 1 | G91: 2 | H91: 1 | L91: 1 | R91: 80 | S91: 1ГЕЛЬ+2СОЛЬ+1ГУАРАНА+1БАНАН
B92: 85 | R92: 85
B93: AfterFinish до 20 мин | J93: 1 | R93: AFTR | S93: 1РЕКАВЕРИ
B94: kcal | C94: =SUM(C75:C93) -> 7 | D94: =SUM(D75:D93) -> 1 | E94: 0 | F94: 8 | G94: 18 | H94: 3 | I94: 3 | J94: 1 | K94: 3 | L94: 3 | M94: 3 | N94: 3 | O94: 7600
C95: =C94*C96 -> 609 | D95: =D94*D96 -> 200 | E95: =E94*E96 -> 0 | F95: =F94*F96 -> 0 | G95: =G94*G96 -> 0 | H95: =H94*H96 -> 0 | I95: =I94*I96 -> 0 | J95: =J94*J96 -> 0 | K95: =K94*K96 -> 210 | L95: =L94*L96 -> 345 | M95: =M94*M96 -> 360 | N95: =N94*N96 -> 795 | O95: =SUM(C95:N95) -> 2519
B96: kcal за порцию | C96: 87 | D96: 200 | K96: 70 | L96: 115 | M96: 120 | N96: 265
A98: Обшее количество | C98: =SUM(C75:C93,C35:C69,C10:C29,C3:C8) -> 26 | D98: 3 | E98: 4 | F98: 24 | G98: 57 | H98: 6 | I98: 10 | J98: 3 | K98: 21 | L98: 11 | M98: 8 | N98: 8 | O98: 23600
